bitfinex/quotes_BTCUSD_20250604
["timestamp","ask_amount","ask_price","bid_price","bid_amount"]
[1749049926713,0.48021801,105100.0,105090.0,0.2058]
[1749049927134,0.50696415,105100.0,105090.0,0.2058]
[1749049927344,0.4980756,105100.0,105090.0,0.2058]
[1749049927553,0.48916023,105100.0,105090.0,0.2058]
[1749049927780,0.4302381,105100.0,105090.0,0.2058]
[1749049929307,0.44537751,105100.0,105090.0,0.2058]
[1749049929525,0.44537751,105100.0,105090.0,0.04408]
[1749049929744,0.4632082,105100.0,105090.0,0.2058]
[1749049929960,0.45429284,105100.0,105090.0,0.2058]
[1749049930174,0.42488635,105100.0,105090.0,0.2058]
[1749049930412,0.44538896,105100.0,105090.0,0.2058]
[1749049930618,0.46321969,105100.0,105090.0,0.2058]
[1749049930834,0.46863496,105100.0,105090.0,0.2058]
[1749049931048,0.44188896,105100.0,105090.0,0.2058]
[1749049931942,0.44188896,105100.0,105090.0,0.2212]
[1749049932151,0.39819255,105100.0,105090.0,0.2869]
[1749049932372,0.04366003,105100.0,105090.0,0.4327543]
[1749049932593,0.03226506,105100.0,105090.0,0.50869526]
[1749049932814,0.37226506,105100.0,105090.0,0.50869526]
[1749049934380,0.37226618,105100.0,105090.0,0.50869526]
[1749049934805,0.37226618,105100.0,105090.0,0.30289526]
[1749049935024,0.37226618,105100.0,105090.0,0.50865526]
[1749049938962,0.37226618,105100.0,105090.0,0.4327143]
[1749049939741,0.43226618,105100.0,105090.0,0.4327143]
[1749049940719,0.43226618,105100.0,105090.0,0.4326743]
[1749049942274,0.43226618,105100.0,105090.0,0.2710343]
[1749049942498,0.4322595,105100.0,105090.0,0.4326743]
[1749049943584,0.4322595,105100.0,105090.0,0.2269543]
[1749049943803,0.4322595,105100.0,105090.0,0.4325943]
[1749049945331,0.4322595,105100.0,105090.0,0.1458543]
[1749049945555,0.45818837,105100.0,105090.0,0.094]
[1749049945764,0.49465863,105100.0,105090.0,0.2556]
[1749049946042,0.56358955,105100.0,105080.0,0.23784]
[1749049946261,0.47682778,105100.0,105080.0,0.3170943]
[1749049946489,0.51832154,105100.0,105090.0,0.2056]
[1749049946739,0.49399922,105100.0,105090.0,0.2056]
[1749049946945,0.51083136,105100.0,105090.0,0.2056]
[1749049947173,0.49299922,105100.0,105090.0,0.2056]
[1749049947374,0.50091523,105100.0,105090.0,0.2056]
[1749049947617,0.49868623,105100.0,105090.0,0.2056]
[1749049947825,0.50091522,105100.0,105090.0,0.2056]
[1749049948054,0.49299922,105100.0,105090.0,0.2056]
[1749049948276,0.49968618,105100.0,105090.0,0.2056]
[1749049948498,0.48949922,105100.0,105090.0,0.2056]
[1749049948708,0.49618613,105100.0,105090.0,0.2056]
[1749049948923,0.51501764,105100.0,105090.0,0.2056]
[1749049949168,0.51724627,105100.0,105090.0,0.2056]
[1749049949381,0.50833044,105100.0,105090.0,0.2056]
[1749049949595,0.49049922,105100.0,105090.0,0.2056]
[1749049950039,0.5083303,105100.0,105090.0,0.2056]
[1749049950267,0.49941476,105100.0,105090.0,0.2056]
[1749049950481,0.49049922,105100.0,105090.0,0.2056]
[1749049950705,0.50832662,105100.0,105090.0,0.2056]
[1749049950926,0.50188079,105100.0,105090.0,0.044]
[1749049951148,0.50832662,105100.0,105090.0,0.044]
[1749049951354,0.49049554,105100.0,105090.0,0.044]
[1749049951571,0.01454085,105090.0,105080.0,0.12990366]
[1749049951790,0.03503396,105090.0,105080.0,0.17390366]
[1749049952005,0.03503396,105090.0,105080.0,0.33550366]
[1749049952860,0.03503396,105090.0,105080.0,0.33650366]
[1749049953521,0.00910819,105090.0,105080.0,0.38650366]
[1749049953975,0.08114909,105100.0,105090.0,0.0809]
[1749049954196,0.09025461,105100.0,105090.0,0.1767543]
[1749049954638,0.08114909,105100.0,105090.0,0.1767543]
[1749049954856,0.09025416,105100.0,105090.0,0.1767543]
[1749049955094,0.43125416,105100.0,105090.0,0.1767543]
[1749049955529,0.43225416,105100.0,105090.0,0.1767543]
[1749049955959,0.43225416,105100.0,105090.0,0.2267543]
[1749049958836,0.43225396,105100.0,105090.0,0.2267543]
[1749049962881,0.43225408,105100.0,105090.0,0.2267543]
[1749049963527,0.43225408,105100.0,105090.0,0.2707543]
[1749049965523,0.37225408,105100.0,105090.0,0.2707543]
[1749049967214,0.37225428,105100.0,105090.0,0.2707543]
[1749049970817,0.37225428,105100.0,105090.0,0.4761543]
[1749049971285,0.37225413,105100.0,105090.0,0.4761543]
[1749049972258,0.37225413,105100.0,105090.0,0.6376743]
[1749049975534,0.37225298,105100.0,105090.0,0.6376743]
[1749049979418,0.37225829,105100.0,105090.0,0.6376743]
[1749049982112,0.43226228,105100.0,105090.0,0.6376743]
[1749049987504,0.43227265,105100.0,105090.0,0.6376743]
[1749049989917,0.43227265,105100.0,105090.0,0.6376343]
[1749049992385,0.43227306,105100.0,105090.0,0.6376343]
[1749049992814,0.44367802,105100.0,105090.0,0.6376343]
[1749049993463,0.43227306,105100.0,105090.0,0.6376343]
[1749049994645,0.43227299,105100.0,105090.0,0.6376343]
[1749049998702,0.43227316,105100.0,105090.0,0.6376343]
[1749050000890,0.44367825,105100.0,105090.0,0.6376343]
[1749050002666,0.43227316,105100.0,105090.0,0.6376343]
[1749050002909,0.43227357,105100.0,105090.0,0.6376343]
[1749050003346,0.43127357,105100.0,105090.0,0.6376343]
[1749050003643,0.44167918,105100.0,105090.0,0.6376343]
[1749050003863,0.44167918,105100.0,105090.0,0.6396343]
[1749050004099,0.44167918,105100.0,105090.0,0.6395943]
[1749050004312,0.44167918,105100.0,105090.0,0.4341543]
[1749050004760,0.45681859,105100.0,105090.0,0.4341543]
[1749050004986,0.45681859,105100.0,105090.0,0.5738743]
[1749050004987,0.47311567,105100.0,105090.0,0.5738743]
[1749050005206,0.49094535,105100.0,105090.0,0.5585743]
[1749050005433,0.47311567,105100.0,105090.0,0.5585743]
[1749050005646,0.49094546,105100.0,105090.0,0.5585743]
[1749050005867,0.4909455,105100.0,105090.0,0.25028]
[1749050006109,0.51790171,105100.0,105090.0,0.41172]
[1749050006349,0.46451962,105100.0,105090.0,0.2554]
[1749050006556,0.46201207,105100.0,105090.0,0.46072]
[1749050006775,0.50839398,105100.0,105090.0,0.46072]
[1749050006996,0.50839398,105100.0,105090.0,0.47592]
[1749050006997,0.47983691,105100.0,105090.0,0.47592]
[1749050007243,0.46200617,105100.0,105090.0,0.47592]
[1749050007889,0.47092149,105100.0,105090.0,0.47592]
[1749050008102,0.46200617,105100.0,105090.0,0.47592]
[1749050008771,0.46200617,105100.0,105090.0,0.2554]
[1749050008995,0.46200617,105100.0,105090.0,0.46076]
[1749050009217,0.46200617,105100.0,105090.0,0.46096]
[1749050009426,0.46200617,105100.0,105090.0,0.2554]
[1749050009636,0.49056317,105100.0,105090.0,0.46096]
[1749050010121,0.49404513,105100.0,105080.0,0.20536]
[1749050010351,0.49404513,105100.0,105050.0,0.07594096]
[1749050010352,0.39773134,105090.0,105070.0,0.20536]
[1749050010589,0.04648637,105080.0,105060.0,0.05]
[1749050010816,0.41013805,105080.0,105070.0,0.1618]
[1749050011070,0.43870005,105080.0,105070.0,0.1618]
[1749050011715,0.45007952,105080.0,105070.0,0.1618]
[1749050012154,0.46398978,105080.0,105070.0,0.1618]
[1749050012376,0.49965888,105080.0,105070.0,0.1618]
[1749050012586,0.48447251,105080.0,105070.0,0.1618]
[1749050012804,0.47056225,105080.0,105070.0,0.1618]
[1749050013030,0.47156225,105080.0,105070.0,0.1618]
[1749050013248,0.4537277,105080.0,105070.0,0.1618]
[1749050013715,0.47256223,105080.0,105070.0,0.1618]
[1749050013941,0.4547277,105080.0,105070.0,0.1618]
[1749050014156,0.55707407,105080.0,105070.0,0.20568]
[1749050014380,0.53923959,105080.0,105070.0,0.20568]
[1749050014608,0.53923959,105080.0,105060.0,0.1774543]
[1749050014843,0.01983455,105080.0,105070.0,0.45891526]
[1749050015105,0.02892605,105080.0,105070.0,0.45891526]
[1749050015532,0.02792605,105080.0,105070.0,0.45891526]
[1749050016159,0.02692605,105080.0,105070.0,0.45891526]
[1749050016592,0.02792605,105080.0,105070.0,0.45891526]
[1749050017018,0.02892605,105080.0,105070.0,0.29727526]
[1749050017239,0.02892605,105080.0,105070.0,0.45883526]
[1749050021326,0.02892605,105080.0,105070.0,0.3828943]
[1749050021580,0.02892605,105080.0,105070.0,0.3829743]
[1749050023132,0.02892539,105080.0,105070.0,0.3829743]
[1749050023355,0.02892539,105080.0,105070.0,0.1774543]
[1749050023577,0.43528119,105080.0,105070.0,0.1897743]
[1749050023800,0.43528119,105080.0,105070.0,0.3016543]
[1749050023801,0.42873461,105080.0,105070.0,0.3016543]
[1749050024015,0.42873461,105080.0,105070.0,0.3516543]
[1749050024444,0.39184207,105080.0,105070.0,0.3516543]
[1749050024667,0.05184207,105080.0,105070.0,0.3677543]
[1749050025130,0.05184207,105080.0,105070.0,0.3835543]
[1749050025361,0.06967438,105080.0,105070.0,0.3835543]
[1749050025587,0.06967421,105080.0,105070.0,0.3835543]
[1749050025806,0.05184207,105080.0,105070.0,0.3835543]
[1749050026246,0.06967438,105080.0,105070.0,0.3835543]
[1749050026494,0.05184207,105080.0,105070.0,0.1777543]
[1749050026719,0.04984207,105080.0,105070.0,0.1897743]
[1749050026931,0.04075123,105080.0,105070.0,0.3535343]
[1749050027136,0.04984515,105080.0,105070.0,0.3545343]
[1749050027576,0.06767769,105080.0,105070.0,0.1643543]
[1749050027820,0.04984515,105080.0,105070.0,0.3859543]
[1749050029618,0.02692847,105080.0,105070.0,0.3859543]
[1749050031123,0.02693359,105080.0,105070.0,0.3859543]
[1749050031543,0.02693359,105080.0,105070.0,0.1793543]
[1749050031762,0.06762023,105080.0,105070.0,0.2088343]
[1749050031994,0.06762023,105080.0,105070.0,0.3547343]
[1749050032210,0.02693359,105080.0,105070.0,0.3547343]
[1749050032430,0.02693359,105080.0,105070.0,0.3712343]
[1749050032872,0.03830739,105080.0,105070.0,0.3537343]
[1749050033098,0.13882818,105080.0,105070.0,0.04448]
[1749050033332,0.22384742,105080.0,105070.0,0.207]
[1749050033558,0.22384742,105080.0,105050.0,0.31224096]
[1749050033559,0.35454085,105070.0,105050.0,0.31224096]
[1749050033780,0.35454085,105070.0,105050.0,0.40809526]
[1749050033781,0.37502552,105070.0,105050.0,0.40809526]
[1749050034003,0.45090692,105070.0,105060.0,0.25696]
[1749050034245,0.47947192,105070.0,105060.0,0.25696]
[1749050034459,0.46428555,105070.0,105060.0,0.27276]
[1749050034691,0.38904967,105070.0,105060.0,0.3842143]
[1749050034907,0.02048467,105070.0,105060.0,0.3842143]
[1749050035127,0.3969376,105080.0,105060.0,0.3842143]
[1749050035370,0.01138671,105070.0,105060.0,0.2061343]
[1749050035669,0.08178201,105070.0,105060.0,0.27272]
[1749050035877,0.03568244,105070.0,105060.0,0.27272]
[1749050036308,0.02049607,105070.0,105060.0,0.27372]
[1749050036534,0.03568244,105070.0,105060.0,0.27472]
[1749050037233,0.42799567,105080.0,105060.0,0.27472]
[1749050037460,0.42799567,105080.0,105060.0,0.29052]
[1749050037668,0.42799567,105080.0,105060.0,0.28952]
[1749050037669,0.41199567,105080.0,105060.0,0.28952]
[1749050038127,0.41199567,105080.0,105060.0,0.3863743]
[1749050038343,0.44437095,105080.0,105070.0,0.0157]
[1749050038552,0.42653652,105080.0,105070.0,0.0157]
[1749050038765,0.42653652,105080.0,105070.0,0.031]
[1749050039619,0.42753652,105080.0,105070.0,0.031]
[1749050040088,0.02151699,105080.0,105070.0,0.1768543]
[1749050040310,0.01983455,105080.0,105070.0,0.1768543]
[1749050041413,0.01983455,105080.0,105070.0,0.17923352]
[1749050041851,0.01983455,105080.0,105070.0,0.17923342]
[1749050042742,0.01883455,105080.0,105070.0,0.17923342]
[1749050042970,0.01783455,105080.0,105070.0,0.1778543]
[1749050043442,0.01783455,105080.0,105070.0,0.1788543]
[1749050043673,0.01783455,105080.0,105070.0,0.18123342]
[1749050044128,0.07783455,105080.0,105070.0,0.18123342]
[1749050044822,0.07783455,105080.0,105070.0,0.25717431]
[1749050045049,0.07783455,105080.0,105070.0,0.25479526]
[1749050046446,0.07783455,105080.0,105070.0,0.1788543]
[1749050049798,0.07783455,105080.0,105070.0,0.18123324]
[1749050050417,0.07783455,105080.0,105070.0,0.1788543]
[1749050050631,0.07783455,105080.0,105070.0,0.3842543]
[1749050052336,0.07783455,105080.0,105070.0,0.5915743]
[1749050052762,0.07783455,105080.0,105070.0,0.5915343]
[1749050053198,0.08693643,105080.0,105070.0,0.5915343]
[1749050053418,0.08693643,105080.0,105070.0,0.5916543]
[1749050053669,0.08693643,105080.0,105070.0,0.4287343]
[1749050053898,0.08693643,105080.0,105070.0,0.3342543]
[1749050054119,0.45774164,105080.0,105070.0,0.5607743]
[1749050054776,0.42693643,105080.0,105070.0,0.5607743]
[1749050055012,0.42693643,105080.0,105070.0,0.5597743]
[1749050055232,0.42793643,105080.0,105070.0,0.3827543]
[1749050055462,0.44676968,105080.0,105070.0,0.5902343]
[1749050055697,0.44677124,105080.0,105070.0,0.5901943]
[1749050055936,0.42893801,105080.0,105070.0,0.5901943]
[1749050056182,0.42893801,105080.0,105070.0,0.5750943]
[1749050056601,0.44677092,105080.0,105070.0,0.5750943]
[1749050056812,0.42893801,105080.0,105070.0,0.5750943]
[1749050057246,0.42893801,105080.0,105070.0,0.5906943]
[1749050057938,0.42893801,105080.0,105070.0,0.5750943]
[1749050058796,0.42893801,105080.0,105070.0,0.5906943]
[1749050059217,0.44677091,105080.0,105070.0,0.5906943]
[1749050059435,0.42893801,105080.0,105070.0,0.5906943]
[1749050060183,0.44677095,105080.0,105070.0,0.5906943]
[1749050060416,0.42893801,105080.0,105070.0,0.5750943]
[1749050060642,0.44677088,105080.0,105070.0,0.3512543]
[1749050060875,0.44677099,105080.0,105070.0,0.5590143]
[1749050061113,0.46460488,105080.0,105070.0,0.5090143]
[1749050061350,0.46460488,105080.0,105070.0,0.5590143]
[1749050061620,0.46460489,105080.0,105070.0,0.5590143]
[1749050061888,0.44677099,105080.0,105070.0,0.5590143]
[1749050062113,0.44677099,105080.0,105070.0,0.3957343]
[1749050062347,0.44677099,105080.0,105070.0,0.5590143]
[1749050062582,0.46460484,105080.0,105070.0,0.5590143]
[1749050062830,0.44677099,105080.0,105070.0,0.5590143]
[1749050063504,0.46460482,105080.0,105070.0,0.5590143]
[1749050063718,0.44677099,105080.0,105070.0,0.5590143]
[1749050063951,0.46460483,105080.0,105070.0,0.5751143]
[1749050064186,0.46460483,105080.0,105070.0,0.5909143]
[1749050064187,0.4646045,105080.0,105070.0,0.5909143]
[1749050064423,0.46460417,105080.0,105070.0,0.5909143]
[1749050064662,0.44677099,105080.0,105070.0,0.5909143]
[1749050065121,0.4467715,105080.0,105070.0,0.5909143]
[1749050065360,0.46460356,105080.0,105070.0,0.5909143]
[1749050065595,0.4467715,105080.0,105070.0,0.5909143]
[1749050065819,0.4646037,105080.0,105070.0,0.5909143]
[1749050066049,0.4467715,105080.0,105070.0,0.5909143]
[1749050069449,0.44677526,105080.0,105070.0,0.5909143]
[1749050072035,0.38677526,105080.0,105070.0,0.5909143]
[1749050072906,0.38577526,105080.0,105070.0,0.5909143]
[1749050073154,0.38477526,105080.0,105070.0,0.5919143]
[1749050073647,0.38477443,105080.0,105070.0,0.5929143]
[1749050077783,0.38477814,105080.0,105070.0,0.5929143]
[1749050078024,0.38477814,105080.0,105070.0,0.4301143]
[1749050078545,0.38477814,105080.0,105070.0,0.5927943]
[1749050079068,0.38477814,105080.0,105070.0,0.5927543]
[1749050079861,0.37566762,105080.0,105070.0,0.5927543]
[1749050080112,0.37566762,105080.0,105070.0,0.3851543]
[1749050080374,0.34,105070.0,105060.0,0.00273001]
[1749050080639,0.42605879,105070.0,105060.0,0.04496]
[1749050080942,0.42605879,105070.0,105060.0,0.20752]
[1749050080943,0.46416561,105070.0,105060.0,0.20752]
[1749050081145,0.4333604,105070.0,105060.0,0.20752]
[1749050081680,0.451196,105070.0,105060.0,0.20752]
[1749050081915,0.41044237,105070.0,105060.0,0.16384]
[1749050082145,0.41044237,105070.0,105060.0,0.04496]
[1749050082375,0.42827798,105070.0,105060.0,0.04496]
[1749050082612,0.41044237,105070.0,105060.0,0.04596]
[1749050082829,0.42827797,105070.0,105060.0,0.04596]
[1749050083040,0.41044237,105070.0,105060.0,0.04596]
[1749050083260,0.46411894,105070.0,105060.0,0.20876]
[1749050083702,0.41044237,105070.0,105060.0,0.20876]
[1749050084784,0.42827772,105070.0,105060.0,0.20876]
[1749050084996,0.41044237,105070.0,105060.0,0.20876]
[1749050086095,0.42827173,105070.0,105060.0,0.20876]
[1749050086334,0.42827171,105070.0,105060.0,0.20876]
[1749050086541,0.36364625,105070.0,105060.0,0.20876]
[1749050086754,0.41164762,105070.0,105060.0,0.20876]
[1749050086970,0.36693983,105070.0,105060.0,0.20876]
[1749050087184,0.3491054,105070.0,105060.0,0.20876]
[1749050087429,0.36693954,105070.0,105060.0,0.20876]
[1749050087635,0.3491054,105070.0,105060.0,0.20876]
[1749050087844,0.39949373,105070.0,105060.0,0.20876]
[1749050088488,0.3491054,105070.0,105060.0,0.22536]
[1749050089352,0.36693948,105070.0,105060.0,0.22536]
[1749050089572,0.3491054,105070.0,105060.0,0.225]
[1749050090256,0.38050264,105070.0,105060.0,0.2084]
[1749050090470,0.3714,105070.0,105060.0,0.2084]
[1749050090687,0.43722406,105070.0,105060.0,0.20736]
[1749050090898,0.41938878,105070.0,105060.0,0.04496]
[1749050091337,0.39830858,105070.0,105060.0,0.04496]
[1749050091556,0.36427356,105070.0,105060.0,0.04496]
[1749050091775,0.34910258,105070.0,105060.0,0.04496]
[1749050092036,0.34910258,105070.0,105060.0,0.20732]
[1749050092462,0.36693724,105070.0,105060.0,0.20732]
[1749050092730,0.34910258,105070.0,105060.0,0.20732]
[1749050092954,0.34910258,105070.0,105060.0,0.22382]
[1749050093376,0.36693717,105070.0,105060.0,0.22382]
[1749050093584,0.34910258,105070.0,105060.0,0.22382]
[1749050093796,0.42927871,105070.0,105060.0,0.22382]
[1749050094271,0.4471133,105070.0,105060.0,0.22382]
[1749050094490,0.42927871,105070.0,105060.0,0.22382]
[1749050094708,0.34910041,105070.0,105060.0,0.22382]
[1749050096204,0.366935,105070.0,105060.0,0.22382]
[1749050096428,0.34910041,105070.0,105060.0,0.3356743]
[1749050097315,0.36047474,105070.0,105060.0,0.3356743]
[1749050098911,0.36047421,105070.0,105060.0,0.3356743]
[1749050100013,0.36047421,105070.0,105060.0,0.3350743]
[1749050100670,0.37830828,105070.0,105060.0,0.3350743]
[1749050100821,0.36047421,105070.0,105060.0,0.3350743]
[1749050101449,0.02047421,105070.0,105060.0,0.3850743]
[1749050101656,0.00909965,105070.0,105060.0,0.3850743]
[1749050102553,0.04235601,105080.0,105070.0,0.0321]
[1749050102738,0.05145604,105080.0,105070.0,0.25389526]
[1749050104349,0.05245604,105080.0,105070.0,0.25389526]
[1749050104908,0.05145604,105080.0,105070.0,0.25389526]
[1749050105339,0.05145604,105080.0,105070.0,0.25589526]
[1749050105340,0.04235601,105080.0,105070.0,0.25589526]
[1749050111439,0.04235601,105080.0,105070.0,0.27043611]
[1749050111654,0.04235601,105080.0,105070.0,0.32043611]
[1749050111876,0.04235601,105080.0,105070.0,0.31843611]
[1749050112104,0.04235601,105080.0,105070.0,0.25389526]
[1749050112987,0.04235601,105080.0,105070.0,0.28244226]
[1749050113549,0.04335601,105080.0,105070.0,0.28644226]
[1749050114226,0.02435601,105080.0,105070.0,0.28644226]
[1749050116670,0.02435601,105080.0,105070.0,0.2108013]
[1749050118280,0.02435601,105080.0,105070.0,0.27534215]
[1749050120438,0.02435601,105080.0,105070.0,0.4182413]
[1749050120677,0.02435601,105080.0,105070.0,0.3896943]
[1749050120911,0.02435601,105080.0,105070.0,0.1822543]
[1749050121152,0.02435601,105080.0,105070.0,0.3900143]
[1749050122855,0.02435601,105080.0,105070.0,0.3900543]
[1749050125060,0.02435601,105080.0,105070.0,0.3913343]
[1749050127282,0.02435601,105080.0,105070.0,0.1822543]
[1749050127492,0.02435601,105080.0,105070.0,0.3913743]
[1749050131495,0.02435601,105080.0,105070.0,0.45591515]
[1749050131712,0.02435601,105080.0,105070.0,0.48446115]
[1749050132613,0.02435601,105080.0,105070.0,0.4699203]
[1749050132873,0.02435601,105080.0,105070.0,0.48446115]
[1749050133549,0.02435601,105080.0,105070.0,0.53446115]
[1749050134007,0.02435601,105080.0,105070.0,0.32534115]
[1749050134230,0.02435601,105080.0,105070.0,0.53450115]
[1749050135394,0.01335601,105080.0,105070.0,0.53050115]
[1749050135620,0.01435601,105080.0,105070.0,0.53850115]
[1749050136283,0.0011031,105080.0,105070.0,0.57165958]
[1749050136748,0.0001371,105100.0,105090.0,0.19504085]
[1749050136981,0.0001371,105100.0,105090.0,0.24089515]
[1749050137214,0.0001371,105100.0,105090.0,0.29089515]
[1749050137641,0.0001371,105100.0,105090.0,0.31943315]
[1749050138109,0.0001371,105100.0,105090.0,0.52875315]
[1749050138541,0.0001371,105100.0,105090.0,0.53375315]
[1749050138985,0.0001371,105100.0,105090.0,0.53391315]
[1749050139264,0.0001371,105100.0,105090.0,0.2552123]
[1749050139489,0.0001371,105100.0,105090.0,0.4193323]
[1749050140826,0.0001371,105100.0,105090.0,0.2098923]
[1749050141054,0.0001371,105100.0,105090.0,0.4192523]
[1749050141750,0.0001371,105100.0,105090.0,0.4142523]
[1749050142216,0.0001371,105100.0,105090.0,0.4172523]
[1749050142450,0.03147258,105130.0,105100.0,0.0319]
[1749050142686,0.04061016,105130.0,105110.0,0.3011743]
[1749050142968,0.04061016,105130.0,105120.0,0.04528]
[1749050143204,0.04061016,105130.0,105120.0,0.19351223]
[1749050143435,0.04061016,105130.0,105120.0,0.3551343]
[1749050143674,0.04161016,105130.0,105120.0,0.3551343]
[1749050143904,0.04161016,105130.0,105120.0,0.1458543]
[1749050144134,0.04161016,105130.0,105120.0,0.3551743]
[1749050144388,0.04161016,105130.0,105120.0,0.3571743]
[1749050145508,0.04161016,105130.0,105120.0,0.1931343]
[1749050145742,0.05741016,105130.0,105120.0,0.1478543]
[1749050145995,0.08032684,105130.0,105120.0,0.1931343]
[1749050146209,0.09170616,105130.0,105120.0,0.1478543]
[1749050146419,0.09170616,105130.0,105120.0,0.3570143]
[1749050146627,0.09170616,105130.0,105120.0,0.3550143]
[1749050146628,0.09068701,105130.0,105120.0,0.3550143]
[1749050147073,0.09268701,105130.0,105120.0,0.3550143]
[1749050149296,0.43268701,105130.0,105120.0,0.3550143]
[1749050149511,0.39268701,105130.0,105120.0,0.3550143]
[1749050149727,0.38536644,105130.0,105120.0,0.3550143]
[1749050149949,0.35108878,105130.0,105120.0,0.3550143]
[1749050150167,0.01108878,105130.0,105120.0,0.3550143]
[1749050151706,0.02571312,105130.0,105120.0,0.3550143]
[1749050152170,0.01108878,105130.0,105120.0,0.3550143]
[1749050152583,0.04188878,105130.0,105120.0,0.3550143]
[1749050154546,0.04188878,105130.0,105120.0,0.1458543]
[1749050154756,0.04188878,105130.0,105120.0,0.3553343]
[1749050154967,0.04189238,105130.0,105120.0,0.3553343]
[1749050155182,0.05325785,105130.0,105120.0,0.3553343]
[1749050155396,0.04189238,105130.0,105120.0,0.3553343]
[1749050155858,0.05325785,105130.0,105120.0,0.3553343]
[1749050156077,0.39607982,105130.0,105120.0,0.3553343]
[1749050156299,0.40744529,105130.0,105120.0,0.3553343]
[1749050156726,0.35607982,105130.0,105120.0,0.3553343]
[1749050157193,0.01607982,105130.0,105120.0,0.3859343]
[1749050159142,0.01418744,105130.0,105120.0,0.3859343]
[1749050159565,0.02919727,105140.0,105130.0,0.05]
[1749050159829,0.02919727,105140.0,105130.0,0.1458543]
[1749050160051,0.04342419,105140.0,105130.0,0.1458543]
[1749050160265,0.05082419,105140.0,105130.0,0.1458543]
[1749050161124,0.05482419,105140.0,105130.0,0.1458543]
[1749050161334,0.06999517,105140.0,105130.0,0.1458543]
[1749050161522,0.07315811,105140.0,105130.0,0.1458543]
[1749050161759,0.10262043,105140.0,105130.0,0.3552543]
[1749050162414,0.05121726,105140.0,105130.0,0.3552543]
[1749050162626,0.04743319,105140.0,105130.0,0.3880543]
[1749050163274,0.03604628,105140.0,105130.0,0.3880543]
[1749050163949,0.04506955,105150.0,105130.0,0.3870543]
[1749050163950,0.04111582,105150.0,105130.0,0.3870543]
[1749050164162,0.03220576,105150.0,105140.0,0.1111543]
[1749050164595,0.03220576,105150.0,105140.0,0.1611543]
[1749050164789,0.04111574,105150.0,105140.0,0.1611543]
[1749050165070,0.03320576,105150.0,105140.0,0.1611543]
[1749050165332,0.05473012,105150.0,105140.0,0.1458543]
[1749050166252,0.05472604,105150.0,105140.0,0.1458543]
[1749050166487,0.04632604,105150.0,105140.0,0.1617543]
[1749050166731,0.04632604,105150.0,105140.0,0.17923181]
[1749050166949,0.03694321,105150.0,105140.0,0.25517277]
[1749050167168,0.03694321,105150.0,105140.0,0.25279526]
[1749050167396,0.03794321,105150.0,105140.0,0.25279526]
[1749050167844,0.03594321,105150.0,105140.0,0.25279526]
[1749050168053,0.03494321,105150.0,105140.0,0.25279526]
[1749050168275,0.03494321,105150.0,105140.0,0.25479526]
[1749050168499,0.03494321,105150.0,105140.0,0.25779526]
[1749050169153,0.02081885,105150.0,105140.0,0.25779526]
[1749050169359,0.03488885,105150.0,105140.0,0.25779526]
[1749050170262,0.02081885,105150.0,105140.0,0.25779526]
[1749050170482,0.02081885,105150.0,105140.0,0.1818543]
[1749050170929,0.00463899,105160.0,105140.0,0.1818543]
[1749050171150,0.03410131,105160.0,105150.0,0.3430343]
[1749050171401,0.00463899,105160.0,105150.0,0.3430343]
[1749050172967,0.00563899,105160.0,105150.0,0.3430343]
[1749050173635,0.02034062,105160.0,105150.0,0.3430343]
[1749050173875,0.00663899,105160.0,105150.0,0.3430343]
[1749050176463,0.00463899,105160.0,105150.0,0.3430343]
[1749050176705,0.00463899,105160.0,105150.0,0.3440343]
[1749050176921,0.00463899,105160.0,105150.0,0.3892743]
[1749050177151,0.00463899,105160.0,105150.0,0.1773543]
[1749050177370,0.01888716,105160.0,105150.0,0.3882743]
[1749050177584,0.01888716,105160.0,105150.0,0.1863543]
[1749050177585,0.00463899,105160.0,105150.0,0.1863543]
[1749050177812,0.00463899,105160.0,105150.0,0.3972743]
[1749050178234,0.00463899,105160.0,105150.0,0.3922743]
[1749050180568,0.00463899,105160.0,105150.0,0.3880743]
[1749050180808,0.00563899,105160.0,105150.0,0.3980743]
[1749050181459,0.00563899,105160.0,105150.0,0.3981143]
[1749050181684,0.00563899,105160.0,105150.0,0.1873543]
[1749050181911,0.00563899,105160.0,105150.0,0.3980743]
[1749050183944,0.00563899,105160.0,105150.0,0.3981143]
[1749050185072,0.01285264,105170.0,105160.0,0.0825]
[1749050185326,0.03915361,105180.0,105170.0,0.0325]
[1749050185556,0.03963375,105180.0,105170.0,0.3835543]
[1749050186730,0.02536283,105180.0,105170.0,0.3835543]
[1749050187180,0.02536283,105180.0,105170.0,0.3855543]
[1749050187872,0.02536283,105180.0,105170.0,0.3875543]
[1749050190159,0.02536283,105180.0,105170.0,0.5989143]
[1749050190672,0.02536283,105180.0,105170.0,0.3214543]
[1749050190893,0.02536283,105180.0,105170.0,0.5482343]
[1749050191112,0.02536283,105180.0,105170.0,0.5982343]
[1749050192390,0.02536283,105180.0,105170.0,0.3869543]
[1749050192596,0.02536283,105180.0,105170.0,0.5980743]
[1749050192814,0.01636283,105180.0,105170.0,0.5980743]
[1749050193464,0.01636283,105180.0,105170.0,0.585223]
[1749050194154,0.01636283,105180.0,105170.0,0.585063]
[1749050196077,0.01636283,105180.0,105170.0,0.5812232]
[1749050197538,0.01636283,105180.0,105170.0,0.5812232]
[1749050199171,0.01636283,105180.0,105170.0,0.5963232]
[1749050199573,0.02545086,105180.0,105170.0,0.5963232]
[1749050202084,0.01636283,105180.0,105170.0,0.5963232]
[1749050202326,0.00216272,105180.0,105170.0,0.5922232]
[1749050203910,0.00216272,105180.0,105170.0,0.9922232]
[1749050204131,0.01106677,105180.0,105170.0,0.9922232]
[1749050204368,0.00216272,105180.0,105170.0,1.0422232]
[1749050204594,0.00216272,105180.0,105170.0,1.0706872]
[1749050205046,0.00216272,105180.0,105170.0,1.0686872]
[1749050205278,0.00216272,105180.0,105170.0,1.0166872]
[1749050205742,0.00216272,105180.0,105170.0,1.0216872]
[1749050206181,0.00216272,105180.0,105170.0,1.0166872]
[1749050206400,0.01106585,105180.0,105170.0,1.0216872]
[1749050206639,0.01106593,105180.0,105170.0,1.0216872]
[1749050207067,0.00200987,105190.0,105180.0,0.032]
[1749050207277,0.00215379,105190.0,105180.0,0.18023035]
[1749050207727,0.00215379,105190.0,105180.0,0.5778543]
[1749050208703,0.00215379,105190.0,105180.0,0.5808543]
[1749050209649,0.00215379,105190.0,105180.0,0.5838543]
[1749050210868,0.00215379,105190.0,105180.0,0.1959953]
[1749050211333,0.00215379,105190.0,105180.0,0.5959953]
[1749050212762,0.00215379,105190.0,105180.0,0.8074353]
[1749050213966,0.02475483,105200.0,105180.0,0.8074353]
[1749050214216,0.02475483,105200.0,105190.0,0.1780543]
[1749050214441,4e-05,105210.0,105200.0,0.0822]
[1749050214693,0.00912292,105210.0,105200.0,0.1780543]
[1749050214919,0.03438,105210.0,105200.0,0.1780543]
[1749050215350,0.00912292,105210.0,105200.0,0.1780543]